bitfinex/quotes_BTCUSD_20250406
["timestamp","ask_amount","ask_price","bid_price","bid_amount"]
[1743961605058,0.00200069,81250.0,81249.0,0.352307]
[1743961605262,0.0496,81276.0,81254.0,0.012307]
[1743961605465,0.0496,81276.0,81261.0,0.012306]
[1743961605725,0.0496,81276.0,81265.0,0.012305]
[1743961605939,0.00079314,81266.0,81265.0,0.13520797]
[1743961606145,0.00032382,81266.0,81265.0,0.13520797]
[1743961606381,1.0647366,81294.0,81271.0,0.012304]
[1743961606499,1.0647366,81294.0,81271.0,0.30993017]
[1743961606696,1.0647366,81294.0,81277.0,0.184553]
[1743961606956,1.0647366,81294.0,81277.0,0.66814225]
[1743961607266,0.0003366,81294.0,81293.0,0.52413293]
[1743961607587,0.0003364,81301.0,81300.0,0.50316296]
[1743961607732,0.0003364,81301.0,81300.0,0.63836593]
[1743961607934,0.0496,81321.0,81311.0,0.012298]
[1743961608138,0.04819,81321.0,81312.0,0.12290297]
[1743961608349,0.00601972,81320.0,81312.0,0.12290297]
[1743961608956,0.00601972,81320.0,81317.0,0.172164]
[1743961609156,0.00601972,81320.0,81319.0,0.012297]
[1743961609403,0.00601972,81320.0,81319.0,0.09367145]
[1743961609578,0.00601972,81320.0,81319.0,0.10596845]
[1743961609723,0.00013674,81321.0,81319.0,0.09367145]
[1743961609919,0.00013674,81321.0,81300.0,1.05751787]
[1743961609920,0.00013674,81321.0,81298.0,0.0123]
[1743961610130,0.00013674,81321.0,81303.0,0.012299]
[1743961610330,0.00013674,81321.0,81304.0,0.12290297]
[1743961610331,0.23013674,81321.0,81304.0,0.12290297]
[1743961610610,0.23013674,81321.0,81290.0,0.012301]
[1743961610611,0.00013674,81321.0,81290.0,0.012301]
[1743961610819,0.00013674,81321.0,81304.0,0.12290297]
[1743961610936,0.00013674,81321.0,81295.0,0.0123]
[1743961610937,0.28340377,81320.0,81296.0,0.18451]
[1743961611138,0.28340377,81320.0,81280.0,0.184546]
[1743961611139,0.0499,81319.0,81280.0,0.184546]
[1743961611474,0.13744382,81318.0,81295.0,0.172211]
[1743961611648,0.01454085,81316.0,81281.0,0.12290297]
[1743961612015,0.0979,81319.0,81268.0,0.172268]
[1743961612016,0.01454085,81309.0,81268.0,0.172268]
[1743961612196,0.01454085,81309.0,81269.0,0.12290297]
[1743961612197,0.01454085,81299.0,81269.0,0.12290297]
[1743961612371,0.54531787,81290.0,81248.0,0.184618]
[1743961612572,0.75516382,81289.0,81253.0,0.012307]
[1743961612781,0.01454085,81279.0,81254.0,0.12290297]
[1743961613011,0.01454085,81277.0,81254.0,0.12290297]
[1743961613217,0.01454085,81277.0,81230.0,0.54531787]
[1743961613218,0.01454085,81268.0,81225.0,0.02945482]
[1743961613443,0.54531787,81260.0,81231.0,0.01231]
[1743961613724,0.11354085,81249.0,81241.0,0.00045654]
[1743961613959,0.01454085,81247.0,81220.0,0.012312]
[1743961614165,0.01454085,81247.0,81224.0,0.184673]
[1743961614368,0.01454085,81247.0,81222.0,0.012311]
[1743961614369,0.01454085,81245.0,81225.0,0.12536476]
[1743961614581,0.54531787,81240.0,81225.0,0.12290297]
[1743961614758,0.54531787,81240.0,81193.0,0.005]
[1743961614759,0.46290297,81239.0,81183.0,0.025]
[1743961615066,0.54531787,81227.0,81209.0,0.012313]
[1743961615237,0.00548295,81226.0,81209.0,0.12290297]
[1743961615396,0.00548295,81226.0,81188.0,0.06652852]
[1743961615397,0.01454085,81225.0,81193.0,0.172428]
[1743961615598,0.01454085,81223.0,81196.0,0.012315]
[1743961615801,0.01454085,81223.0,81197.0,0.12290297]
[1743961616171,0.54531787,81210.0,81188.0,0.04152852]
[1743961616501,0.00548093,81209.0,81201.0,0.012315]
[1743961616710,0.2766,81213.0,81212.0,0.012313]
[1743961616911,0.00534734,81213.0,81212.0,0.47521597]
[1743961617132,0.0491,81240.0,81223.0,0.012311]
[1743961617302,0.0491,81240.0,81214.0,0.012313]
[1743961617303,0.59441787,81240.0,81207.0,0.352314]
[1743961617448,0.54531787,81230.0,81208.0,0.12290297]
[1743961617646,0.54531787,81230.0,81209.0,0.34]
[1743961617647,0.00541661,81223.0,81209.0,0.34]
[1743961617857,0.00541661,81223.0,81211.0,0.34]
[1743961618078,0.01454085,81239.0,81211.0,0.12290297]
[1743961618327,0.01454085,81239.0,81217.0,0.184689]
[1743961618557,0.01454085,81239.0,81218.0,0.13767711]
[1743961618785,0.59441787,81240.0,81218.0,0.13521497]
[1743961619027,0.59441787,81240.0,81223.0,0.012311]
[1743961619230,0.0491,81240.0,81223.0,0.12290297]
[1743961619677,0.59441787,81240.0,81223.0,0.12290297]
[1743961620217,0.0491,81240.0,81223.0,0.12290297]
[1743961620425,0.0491,81240.0,81231.0,0.01231]
[1743961620543,0.0491,81240.0,81237.0,0.012309]
[1743961620748,0.0491,81240.0,81239.0,0.012309]
[1743961620962,0.0491,81240.0,81239.0,0.13521197]
[1743961621206,0.0491,81240.0,81234.0,0.35231]
[1743961621430,0.27448,81254.0,81247.0,0.172314]
[1743961621689,0.0484,81257.0,81256.0,0.352306]
[1743961621901,1.063,81277.0,81269.0,0.172266]
[1743961621902,1.1114,81277.0,81269.0,0.172266]
[1743961622037,1.1114,81277.0,81270.0,0.00246062]
[1743961622234,1.1114,81277.0,81276.0,0.012303]
[1743961622435,1.1114,81277.0,81276.0,0.13520597]
[1743961622637,0.27412,81295.0,81292.0,0.184519]
[1743961622842,0.27412,81295.0,81292.0,0.12290297]
[1743961623237,0.00045589,81295.0,81294.0,0.012301]
[1743961623439,0.00045589,81295.0,81294.0,0.90784945]
[1743961623664,0.00045589,81295.0,81294.0,0.90538977]
[1743961623867,0.27332,81321.0,81294.0,0.90538977]
[1743961623868,0.0491,81325.0,81323.0,0.184449]
[1743961624099,0.0487364,81327.0,81323.0,0.30735197]
[1743961624252,0.00047316,81324.0,81323.0,0.64735197]
[1743961624461,1.06284,81340.0,81323.0,0.64735197]
[1743961624462,0.0484,81365.0,81338.0,0.524415]
[1743961624739,0.0484,81365.0,81338.0,1.07727127]
[1743961625143,0.0484,81401.0,81351.0,0.352292]
[1743961625381,0.0006239,81383.0,81382.0,0.012287]
[1743961625583,0.0006239,81383.0,81382.0,0.13764692]
[1743961625784,0.0006239,81383.0,81382.0,0.12290297]
[1743961625995,0.0006239,81383.0,81367.0,0.012289]
[1743961626194,0.0006239,81383.0,81362.0,0.172068]
[1743961626195,0.0006239,81383.0,81368.0,0.12290297]
[1743961626523,0.0006239,81383.0,81369.0,0.00245749]
[1743961626731,0.0006239,81383.0,81355.0,0.012291]
[1743961626732,0.54531787,81380.0,81361.0,0.01229]
[1743961626942,0.0006239,81383.0,81368.0,0.012289]
[1743961627152,0.00530701,81379.0,81378.0,0.34]
[1743961627352,0.0006239,81383.0,81378.0,0.12290297]
[1743961627579,0.0006239,81383.0,81357.0,0.012291]
[1743961627752,0.54531787,81380.0,81358.0,0.12290297]
[1743961627959,0.54531787,81380.0,81344.0,0.172108]
[1743961627960,0.06364085,81378.0,81346.0,0.184397]
[1743961628333,0.00525814,81377.0,81371.0,0.012289]
[1743961628539,0.00525814,81377.0,81376.0,0.01216648]
[1743961628723,0.00525814,81377.0,81376.0,0.01462377]
[1743961628923,0.00525814,81377.0,81376.0,0.78190758]
[1743961629148,0.0006239,81383.0,81376.0,0.78190758]
[1743961629149,0.0006239,81383.0,81376.0,0.34]
[1743961629266,0.0006239,81383.0,81378.0,0.34]
[1743961629469,0.0006239,81383.0,81382.0,0.012287]
[1743961629671,0.0484,81393.0,81382.0,0.012287]
[1743961629672,0.54483408,81390.0,81382.0,0.12290297]
[1743961629873,0.54483408,81390.0,81376.0,0.34]
[1743961629874,0.00529118,81389.0,81376.0,0.34]
[1743961630098,0.00529118,81389.0,81378.0,0.34]
[1743961630337,0.54531787,81388.0,81378.0,0.34]
[1743961630493,0.00529118,81389.0,81372.0,0.012289]
[1743961630699,0.54545455,81390.0,81373.0,0.12290297]
[1743961630896,0.00531706,81389.0,81354.0,0.012291]
[1743961631096,0.54531787,81370.0,81355.0,0.12290297]
[1743961631297,0.05438976,81369.0,81343.0,0.012293]
[1743961631559,0.54531787,81360.0,81343.0,0.12290297]
[1743961631762,0.0484,81364.0,81350.0,0.012292]
[1743961631903,0.00524808,81359.0,81358.0,0.012291]
[1743961632102,0.0484,81364.0,81363.0,0.01229]
[1743961632315,0.0484,81364.0,81363.0,0.64726097]
[1743961632520,0.0491,81369.0,81363.0,0.64726097]
[1743961632521,0.0491,81369.0,81368.0,0.184346]
[1743961632747,0.0491,81369.0,81368.0,0.34]
[1743961632911,0.04923663,81369.0,81368.0,0.47519197]
[1743961633145,0.00013663,81369.0,81368.0,0.90498257]
[1743961633408,0.00013663,81369.0,81368.0,0.46290297]
[1743961634145,0.00013663,81369.0,81368.0,0.90497917]
[1743961635755,0.00013663,81369.0,81368.0,0.89269017]
[1743961635968,0.00013663,81369.0,81368.0,0.46290297]
[1743961636359,0.00013663,81369.0,81368.0,0.12290297]
[1743961636571,0.00013663,81369.0,81336.0,0.005]
[1743961636572,0.00013663,81369.0,81343.0,0.012293]
[1743961636778,0.54531787,81360.0,81349.0,0.012292]
[1743961636951,0.54531787,81360.0,81336.0,0.172123]
[1743961636952,0.54531787,81360.0,81350.0,0.12290297]
[1743961637161,0.54531787,81360.0,81331.0,0.012295]
[1743961637162,0.00487785,81359.0,81331.0,0.012295]
[1743961637355,0.00487785,81359.0,81332.0,0.12290297]
[1743961637356,0.54531787,81341.0,81332.0,0.12290297]
[1743961637533,0.54531787,81341.0,81318.0,0.012297]
[1743961637738,1.06148,81347.0,81319.0,0.13519997]
[1743961637739,0.54531787,81330.0,81319.0,0.13519997]
[1743961637983,0.54531787,81330.0,81305.0,0.012299]
[1743961638119,0.54531787,81315.0,81306.0,0.12290297]
[1743961638320,0.0069371,81314.0,81305.0,0.12290297]
[1743961638545,0.0069371,81314.0,81305.0,0.12335877]
[1743961638954,0.0069371,81314.0,81311.0,0.172178]
[1743961639155,0.0069371,81314.0,81313.0,0.184472]
[1743961639358,0.54531787,81321.0,81308.0,0.012298]
[1743961639563,0.54531787,81321.0,81308.0,0.12290297]
[1743961639772,0.54531787,81321.0,81305.0,0.0004558]
[1743961639773,0.01454085,81319.0,81305.0,0.0004558]
[1743961639976,0.54531787,81283.0,81275.0,0.012303]
[1743961640188,0.54531787,81283.0,81278.0,0.012303]
[1743961640364,1.06152,81289.0,81288.0,0.012301]
[1743961640543,1.06152,81289.0,81288.0,0.30743097]
[1743961640979,0.54531787,81300.0,81288.0,0.12290297]
[1743961641184,0.54531787,81300.0,81260.0,0.172285]
[1743961641185,0.66822084,81300.0,81260.0,0.172285]
[1743961641358,0.28484,81304.0,81260.0,0.172285]
[1743961641359,0.54531787,81285.0,81273.0,0.012304]
[1743961641563,0.0495,81286.0,81285.0,0.012302]
[1743961641785,0.0495,81286.0,81285.0,0.01476213]
[1743961642048,0.0001684,81289.0,81288.0,0.012301]
[1743961642260,0.0001684,81289.0,81288.0,0.13520397]
[1743961642468,0.0001684,81289.0,81288.0,0.90540887]
[1743961642636,0.0001684,81289.0,81280.0,0.012303]
[1743961642846,0.0001684,81289.0,81288.0,0.012301]
[1743961643052,0.0001684,81289.0,81270.0,0.012304]
[1743961643225,0.0001684,81289.0,81280.0,0.012303]
[1743961643425,0.0001684,81289.0,81273.0,0.012304]
[1743961643631,0.0001684,81289.0,81288.0,0.184528]
[1743961643837,0.0001684,81289.0,81282.0,0.012302]
[1743961644042,0.0486,81288.0,81264.0,0.012305]
[1743961644263,0.0486,81288.0,81261.0,0.012306]
[1743961644462,0.0486,81288.0,81241.0,0.012309]
[1743961644463,0.01454085,81285.0,81241.0,0.012309]
[1743961644666,0.01454085,81285.0,81223.0,0.025]
[1743961644667,0.54531787,81270.0,81259.0,0.012306]
[1743961644864,0.0495,81286.0,81239.0,0.232645]
[1743961644865,0.54531787,81280.0,81274.0,0.172256]
[1743961645076,0.0495,81286.0,81269.0,0.18457]
[1743961645323,0.01454085,81279.0,81228.0,0.025]
[1743961645547,0.54531787,81270.0,81254.0,0.172299]
[1743961645681,0.54531787,81280.0,81262.0,0.012305]
[1743961645881,0.28712,81278.0,81265.0,0.012305]
[1743961646091,0.28712,81278.0,81256.0,0.012306]
[1743961646092,0.28712,81278.0,81270.0,0.172264]
[1743961646301,0.28712,81278.0,81270.0,0.29762763]
[1743961646483,0.28712,81278.0,81270.0,0.13520697]
[1743961646684,0.28712,81278.0,81242.0,0.025]
[1743961646685,0.12290297,81277.0,81234.0,0.025]
[1743961646890,0.28712,81278.0,81273.0,0.172258]
[1743961647135,0.28712,81278.0,81271.0,0.012304]
[1743961647340,0.28712,81278.0,81268.0,0.184573]
[1743961647544,0.28712,81278.0,81269.0,0.00246069]
[1743961647717,0.28712,81278.0,81253.0,0.012307]
[1743961647974,0.0495,81286.0,81269.0,0.012304]
[1743961648174,0.54531787,81280.0,81263.0,0.012305]
[1743961648313,0.54531787,81280.0,81263.0,0.184583]
[1743961648513,0.54531787,81280.0,81264.0,0.012305]
[1743961649118,0.01454085,81279.0,81254.0,0.12290297]
[1743961649334,0.54531787,81264.0,81247.0,4e-05]
[1743961649536,0.01454085,81262.0,81247.0,4e-05]
[1743961649745,0.0491,81278.0,81256.0,0.012306]
[1743961649950,0.54531787,81260.0,81247.0,4e-05]
[1743961650153,0.54531787,81270.0,81255.0,0.012306]
[1743961650357,0.54531787,81270.0,81248.0,0.12290297]
[1743961650358,0.54531787,81270.0,81248.0,0.13520997]
[1743961650550,0.01454085,81261.0,81247.0,4e-05]
[1743961651116,0.01454085,81259.0,81247.0,4e-05]
[1743961651314,0.55985872,81257.0,81247.0,4e-05]
[1743961651524,0.01454085,81255.0,81247.0,4e-05]
[1743961651732,0.35454085,81253.0,81247.0,4e-05]
[1743961651937,0.35454085,81251.0,81214.0,0.012313]
[1743961652135,0.5451673,81224.0,81207.0,0.012314]
[1743961652349,0.5451673,81224.0,81206.0,0.012314]
[1743961652550,0.091,81223.0,81210.0,0.0024625]
[1743961652730,0.091,81223.0,81215.0,0.012312]
[1743961652913,0.091,81223.0,81222.0,0.012311]
[1743961653115,0.0468,81223.0,81222.0,0.012311]
[1743961653611,0.0468,81223.0,81222.0,0.13535073]
[1743961654220,0.0468,81223.0,81222.0,0.00013676]
[1743961654221,0.04671169,81223.0,81222.0,0.00013676]
[1743961654421,0.04671169,81223.0,81222.0,0.00017676]
[1743961655449,0.04671169,81223.0,81222.0,0.00021676]
[1743961656446,0.18401045,81223.0,81222.0,0.00021676]
[1743961656655,0.18401045,81223.0,81209.0,0.0003368]
[1743961656656,0.54531787,81219.0,81209.0,0.0003368]
[1743961656867,0.13744382,81218.0,81209.0,0.00047364]
[1743961657268,0.01454085,81216.0,81188.0,0.04152852]
[1743961657512,0.01454085,81199.0,81188.0,0.04166562]
[1743961657711,0.01454085,81197.0,81188.0,0.04166562]
[1743961658289,0.13744382,81197.0,81188.0,0.04166562]
[1743961658913,0.12290297,81197.0,81188.0,0.04166562]
[1743961659118,0.0466,81198.0,81193.0,0.184744]
[1743961659316,0.0466,81198.0,81193.0,0.012316]
[1743961659522,0.0471,81197.0,81194.0,0.184742]
[1743961659719,0.0421,81197.0,81194.0,0.012316]
[1743961659919,0.0421,81197.0,81194.0,0.184742]
[1743961660095,0.0421,81197.0,81196.0,0.012315]
[1743961660319,0.0466,81222.0,81215.0,0.012312]
[1743961660534,0.0466,81222.0,81216.0,0.012312]
[1743961660718,0.0466,81222.0,81212.0,0.184701]
[1743961660914,0.0466,81222.0,81214.0,0.172384]
[1743961661263,0.0466,81222.0,81212.0,0.184701]
[1743961661416,0.0466,81222.0,81183.0,0.655307]
[1743961661417,0.59191787,81222.0,81200.0,0.012315]
[1743961661629,0.01454085,81221.0,81202.0,0.012314]
[1743961661810,0.01454085,81221.0,81198.0,0.172416]
[1743961662006,0.01454085,81221.0,81189.0,0.172436]
[1743961662007,0.54531787,81210.0,81191.0,0.184748]
[1743961662211,0.54531787,81210.0,81195.0,0.012316]
[1743961662434,0.54531787,81210.0,81195.0,0.184739]
[1743961662644,0.54531787,81210.0,81200.0,0.012315]
[1743961662645,0.0471,81209.0,81200.0,0.012315]
[1743961662846,0.0471,81209.0,81203.0,0.184721]
[1743961663109,0.0471,81209.0,81204.0,0.012314]
[1743961663534,0.0471,81209.0,81188.0,0.38152852]
[1743961663726,0.0471,81209.0,81189.0,0.1725721]
[1743961663866,0.0471,81209.0,81195.0,0.012316]
[1743961664068,0.01454085,81208.0,81189.0,0.0001371]
[1743961664389,0.13744382,81208.0,81188.0,0.03666562]
[1743961664508,0.01467729,81208.0,81188.0,0.03666562]
[1743961665095,0.54531787,81200.0,81188.0,0.03666562]
[1743961665412,0.54531787,81200.0,81186.0,0.0003358]
[1743961665413,0.01454085,81196.0,81186.0,0.0003358]
[1743961665622,0.01454085,81194.0,81186.0,0.0003358]
[1743961665825,0.01454085,81192.0,81101.0,0.005]
[1743961666014,0.01454085,81177.0,81149.0,0.012323]
[1743961666216,0.01454085,81177.0,81163.0,0.01232]
[1743961666417,0.01454085,81177.0,81138.0,0.0003362]
[1743961666418,0.01454085,81175.0,81138.0,0.0003362]
[1743961666625,0.01454085,81173.0,81138.0,0.1728802]
[1743961666777,0.01454085,81171.0,81140.0,0.1851988]
[1743961666950,0.0466,81174.0,81140.0,0.0003358]
[1743961666951,0.01454085,81158.0,81140.0,0.0003358]
[1743961667155,0.54531787,81150.0,81143.0,0.184857]
[1743961667356,0.54531787,81150.0,81140.0,0.0003358]
[1743961667691,0.01454085,81149.0,81140.0,0.0003358]
[1743961667888,0.66822084,81150.0,81140.0,0.0003358]
[1743961667889,1.06313301,81158.0,81144.0,0.172532]
[1743961668224,0.13744382,81157.0,81142.0,0.012324]
[1743961668574,0.01454085,81157.0,81150.0,0.012322]
[1743961668788,1.06313301,81158.0,81150.0,0.18484]
[1743961669015,1.06313301,81158.0,81151.0,0.03024897]
[1743961669737,1.06313301,81158.0,81152.0,0.01870196]
[1743961669953,1.05697519,81158.0,81153.0,0.01154701]
[1743961670076,1.05697519,81158.0,81153.0,0.03024897]
[1743961670279,0.01454085,81157.0,81153.0,0.03024897]
[1743961670486,0.13744382,81157.0,81153.0,0.03024897]
[1743961670905,0.13744382,81157.0,81154.0,0.01870196]
[1743961671339,0.13744382,81157.0,81155.0,0.01154701]
[1743961671763,0.13744382,81157.0,81156.0,0.01870196]
[1743961672004,1.05697519,81158.0,81156.0,0.01870196]
[1743961672355,1.05697519,81158.0,81157.0,0.01154701]
[1743961672597,1.19441901,81158.0,81157.0,0.01154701]
[1743961672801,1.19441901,81158.0,81157.0,0.03024897]
[1743961673379,0.01454085,81149.0,81140.0,0.0003358]
[1743961673579,0.12290297,81148.0,81140.0,0.0003358]
[1743961674350,0.01454085,81147.0,81140.0,0.0003358]
[1743961674604,0.01454085,81145.0,81140.0,0.0003358]
[1743961674935,0.13744382,81145.0,81140.0,0.0003358]
[1743961675141,0.01454085,81143.0,81140.0,0.0003358]
[1743961675271,0.54531787,81150.0,81140.0,0.0003358]
[1743961675272,0.01454085,81141.0,81140.0,0.0003358]
[1743961675470,0.13744382,81141.0,81140.0,0.0003358]
[1743961675933,0.13758006,81141.0,81140.0,0.0003358]
[1743961678759,0.00013624,81141.0,81140.0,0.0003358]
[1743961678962,0.12303921,81141.0,81140.0,0.0003358]
[1743961679160,0.13758006,81141.0,81140.0,0.0003358]
[1743961680342,0.47758006,81141.0,81140.0,0.0003358]
[1743961680581,0.00013624,81141.0,81140.0,0.0003358]
[1743961681052,0.13758006,81141.0,81140.0,0.0003358]
[1743961681341,0.01467709,81141.0,81140.0,0.0003358]
[1743961681580,0.00013624,81141.0,81140.0,0.0003358]
[1743961685504,0.00013624,81141.0,81140.0,0.01840969]
[1743961686049,0.00013624,81141.0,81140.0,0.32782838]
[1743961686268,0.00013624,81141.0,81140.0,1.10865241]
[1743961686534,0.0499,81179.0,81159.0,0.18482]
[1743961686789,1.32584,81186.0,81162.0,0.012321]
[1743961686790,1.06424,81186.0,81162.0,0.012321]
[1743961687038,1.06424,81186.0,81170.0,0.184796]
[1743961687289,1.06424,81186.0,81170.0,0.30769897]
[1743961687521,0.67668,81202.0,81170.0,0.64769897]
[1743961687522,0.26108,81202.0,81170.0,0.64769897]
[1743961687733,0.4156,81211.0,81197.0,0.012315]
[1743961687958,1.06424,81212.0,81204.0,0.184719]
[1743961688217,1.06424,81212.0,81205.0,0.00246262]
[1743961688416,1.06424,81212.0,81208.0,0.172394]
[1743961688613,1.06424,81212.0,81209.0,0.12290297]
[1743961688844,1.06424,81212.0,81197.0,0.00046086]
[1743961689040,1.06424,81212.0,81210.0,0.01807389]
[1743961689255,0.74663382,81211.0,81210.0,0.01807389]
[1743961689467,0.35454085,81205.0,81198.0,0.01150995]
[1743961689670,0.35454085,81203.0,81198.0,0.01150995]
[1743961689886,0.01454085,81201.0,81198.0,0.01150995]
[1743961690112,0.52695585,81199.0,81198.0,0.01150995]
[1743961690311,0.52695585,81199.0,81130.0,0.26016]
[1743961690312,0.54531787,81163.0,81140.0,0.1728748]
[1743961690520,0.0469,81190.0,81168.0,0.01232]
[1743961690780,0.0499,81196.0,81171.0,0.012319]
[1743961691024,0.34,81199.0,81172.0,0.12290297]
[1743961691257,0.54531787,81180.0,81145.0,0.012323]
[1743961691478,0.54531787,81170.0,81151.0,0.12290297]
[1743961691648,0.01454085,81179.0,81151.0,0.12290297]
[1743961691863,0.4156,81194.0,81151.0,0.12290297]
[1743961692021,0.01454085,81188.0,81163.0,0.01232]
[1743961692226,0.34,81189.0,81175.0,0.012319]
[1743961692440,0.34,81189.0,81164.0,0.12290297]
[1743961692682,0.34,81189.0,81140.0,0.54565367]
[1743961692683,0.54531787,81180.0,81155.0,0.184831]
[1743961692933,0.54531787,81180.0,81156.0,0.13522397]
[1743961693138,0.54531787,81180.0,81156.0,0.12290297]
[1743961693549,0.54531787,81180.0,81156.0,0.12336276]
[1743961693788,0.4156,81180.0,81164.0,0.01232]
[1743961693949,0.4156,81180.0,81171.0,0.012319]
[1743961694161,0.4156,81180.0,81172.0,0.13768567]
[1743961694397,0.4156,81180.0,81171.0,0.184792]
[1743961694398,0.54531787,81182.0,81154.0,0.012322]
[1743961694612,0.0001685,81180.0,81157.0,0.12290297]
[1743961694771,0.0001685,81180.0,81157.0,0.13522397]
[1743961694979,0.0001685,81180.0,81160.0,0.012321]
[1743961695246,0.0001685,81180.0,81164.0,0.01232]
[1743961695405,0.0001685,81180.0,81163.0,0.172491]
[1743961695748,0.0001685,81180.0,81166.0,0.01232]
[1743961695902,0.0001685,81180.0,81166.0,0.13522297]
[1743961696101,0.0001685,81180.0,81166.0,0.12290297]
[1743961696334,0.0001685,81180.0,81132.0,8e-05]
[1743961696335,0.7556,81179.0,81132.0,8e-05]
[1743961696505,0.34,81170.0,81135.0,0.012325]
[1743961696706,0.7556,81170.0,81140.0,0.0126598]
[1743961696907,0.43014085,81169.0,81140.0,0.0003358]
[1743961697182,0.4156,81169.0,81151.0,0.172516]
[1743961697387,0.4156,81169.0,81157.0,0.002464]
[1743961697576,0.4156,81169.0,81156.0,0.12336276]
[1743961698182,0.02458,81168.0,81156.0,0.12336276]
[1743961698329,0.46290297,81168.0,81156.0,0.00045979]
[1743961698527,0.34,81166.0,81156.0,0.00045979]
[1743961698750,0.0463,81168.0,81156.0,0.00045979]
[1743961698751,0.01454085,81163.0,81156.0,0.00045979]
[1743961698925,0.0463,81168.0,81156.0,0.00045979]
[1743961698926,0.01454085,81160.0,81156.0,0.00045979]
[1743961699128,0.12290297,81159.0,81156.0,0.00045979]
[1743961699482,0.77014085,81158.0,81156.0,0.00045979]
[1743961699806,0.47744382,81157.0,81156.0,0.00045979]
[1743961700011,0.89304382,81157.0,81156.0,0.00045979]
[1743961700426,0.87850297,81157.0,81156.0,0.00045979]
[1743961700627,0.7556,81157.0,81156.0,0.00045979]
[1743961701032,0.4156,81157.0,81156.0,0.00045979]
[1743961701360,1.06384,81173.0,81156.0,0.00045979]
[1743961701722,0.34,81172.0,81156.0,0.00045979]
[1743961701934,0.34,81169.0,81156.0,0.00045979]
[1743961702396,0.01454085,81168.0,81156.0,0.00045979]
[1743961702603,0.01454085,81166.0,81156.0,0.00045979]
[1743961702769,0.01454085,81164.0,81156.0,0.00045979]
[1743961702976,0.4156,81169.0,81156.0,0.00045979]
[1743961703184,0.5998,81168.0,81156.0,0.00045979]
[1743961703905,0.13744382,81167.0,81156.0,0.00045979]
[1743961704257,0.35454085,81165.0,81156.0,0.00045979]
[1743961704452,0.34,81163.0,81156.0,0.00045979]
[1743961705031,0.34,81161.0,81156.0,0.00045979]
[1743961705179,0.25868,81162.0,81156.0,0.00045979]
[1743961705565,0.4156,81172.0,81156.0,0.00045979]
[1743961705852,0.4156,81172.0,81156.0,0.00292392]
[1743961706043,0.4156,81172.0,81166.0,0.01232]
[1743961706254,1.06384,81173.0,81172.0,0.012319]
[1743961706448,1.06384,81173.0,81172.0,0.12290297]
[1743961707058,1.06384,81173.0,81164.0,0.02889818]
[1743961707897,1.06384,81173.0,81156.0,0.00292399]
[1743961708101,1.06384,81173.0,81159.0,0.012321]
[1743961708415,1.06384,81173.0,81160.0,0.12290297]
[1743961710988,0.0001685,81180.0,81160.0,0.12290297]
[1743961711386,0.0001685,81180.0,81156.0,0.00045979]
[1743961711387,0.7556,81179.0,81156.0,0.00045979]
[1743961711588,0.7556,81179.0,81157.0,0.12290297]
[1743961711994,0.7556,81179.0,81158.0,0.184823]
[1743961712179,0.7556,81179.0,81157.0,0.13522397]
[1743961712368,0.7556,81179.0,81157.0,0.12290297]
[1743961712576,0.87850297,81179.0,81156.0,0.00045979]
[1743961712851,0.34,81169.0,81156.0,0.00045979]
[1743961713022,0.54531787,81170.0,81156.0,0.00045979]
[1743961713023,0.01454085,81166.0,81156.0,0.00045979]
[1743961713452,0.34,81167.0,81156.0,0.00045979]
[1743961713453,0.35454085,81164.0,81156.0,0.00045979]
[1743961713629,0.34,81162.0,81156.0,0.00045979]
[1743961714517,0.53850297,81161.0,81156.0,0.00045979]
[1743961714724,0.01454085,81160.0,81156.0,0.00045979]
[1743961714922,0.34,81158.0,81156.0,0.00045979]
[1743961715104,1.00788,81157.0,81156.0,0.00045979]
[1743961716563,1.14532382,81157.0,81156.0,0.00045979]
[1743961716742,1.14532382,81157.0,81140.0,0.0003358]
[1743961716743,0.172517,81151.0,81140.0,0.0003358]
[1743961716943,0.38972382,81157.0,81140.0,0.00079522]
[1743961716944,0.34,81145.0,81140.0,0.00079522]
[1743961717154,0.01454085,81149.0,81140.0,0.00079522]
[1743961717155,0.01454085,81142.0,81140.0,0.00079522]
[1743961717371,0.47744382,81141.0,81140.0,0.00079522]
[1743961717576,1.16032303,81141.0,81140.0,0.00079522]
[1743961718422,0.98778403,81141.0,81140.0,0.00079522]
[1743961719393,1.16032303,81141.0,81140.0,0.00079522]
[1743961719812,0.98778403,81141.0,81140.0,0.00079522]
[1743961720425,0.75514021,81141.0,81140.0,0.00079522]
[1743961721483,1.064,81150.0,81148.0,0.172522]
[1743961721646,1.064,81150.0,81149.0,0.012323]
[1743961721889,1.064,81150.0,81148.0,0.12290297]
[1743961722448,1.0635,81150.0,81140.0,0.00079522]
[1743961722748,1.0635,81150.0,81141.0,0.12290297]
[1743961722945,1.0635,81150.0,81140.0,0.00079522]
[1743961723151,1.0635,81150.0,81146.0,0.184849]
[1743961723422,1.0635,81150.0,81147.0,0.184847]
[1743961723632,1.0635,81150.0,81146.0,0.12290297]
[1743961724191,1.0635,81150.0,81147.0,0.184847]
[1743961724520,1.0635,81150.0,81148.0,0.12290297]
[1743961724648,1.0635,81150.0,81140.0,0.00079522]
[1743961724865,1.0635,81150.0,81141.0,0.12290297]
[1743961725064,1.0635,81150.0,81140.0,0.30856319]
[1743961725295,1.0635,81150.0,81145.0,0.012323]
[1743961725511,1.0635,81150.0,81146.0,0.184849]
[1743961725830,1.0635,81150.0,81142.0,0.012324]
[1743961725966,1.0635,81150.0,81143.0,0.12290297]
[1743961726167,1.0635,81150.0,81143.0,0.13522597]
[1743961726371,1.0635,81150.0,81143.0,0.12290297]
[1743961726590,1.0635,81150.0,81140.0,0.00079522]
[1743961726798,1.0635,81150.0,81140.0,0.01311922]
[1743961726994,1.0635,81150.0,81146.0,0.184851]
[1743961727199,1.0635,81150.0,81149.0,0.012323]
[1743961728270,1.0635,81150.0,81148.0,0.012323]
[1743961728483,1.0635,81150.0,81146.0,0.13522597]
[1743961728658,1.0635,81150.0,81136.0,0.172549]
[1743961728659,1.0635,81150.0,81115.0,0.0459]
[1743961728866,1.0635,81150.0,81109.0,0.0481]
[1743961728867,0.34,81149.0,81126.0,0.17257]
[1743961729067,0.34,81149.0,81138.0,0.0126602]
[1743961729244,1.0635,81150.0,81146.0,0.012323]
[1743961729447,1.0635,81150.0,81147.0,0.172526]